fUST/lending_fUST_20260122
["ID","MTS","AMOUNT","RATE_DAILY","PERIOD"]
[402968789,1769019032497,-500.0,0.00011969,2]
[402968790,1769019032507,-500.0,0.00011969,2]
[402968791,1769019032516,-500.0,0.00011969,2]
[402968792,1769019032525,-500.0,0.00011969,2]
[402968793,1769019032535,-500.0,0.00011969,2]
[402968794,1769019032544,-500.0,0.00011969,2]
[402968795,1769019032552,-158.4760762,0.00011969,2]
[402968796,1769019032561,-500.0,0.00011969,2]
[402968797,1769019032570,-500.0,0.00011969,2]
[402968798,1769019032579,-395.35367284,0.00011969,2]
[402968799,1769019032589,-500.0,0.00011969,2]
[402968800,1769019032598,-500.0,0.00011969,2]
[402968801,1769019032607,-500.0,0.00011969,2]
[402968802,1769019032616,-500.0,0.00011969,2]
[402968803,1769019032625,-500.0,0.00011969,2]
[402968804,1769019032635,-556.04489901,0.00011969,2]
[402968805,1769019032644,-500.0,0.00011969,2]
[402968806,1769019032653,-163.18421727,0.00011969,2]
[402968807,1769019032662,-500.0,0.00011969,2]
[402968808,1769019032672,-500.0,0.00011969,2]
[402968809,1769019032682,-500.0,0.00011969,2]
[402968810,1769019032692,-500.0,0.00011969,2]
[402968811,1769019032701,-500.0,0.00011969,2]
[402968812,1769019032711,-500.0,0.00011969,2]
[402968813,1769019032720,-500.0,0.00011969,2]
[402968814,1769019032730,-500.0,0.00011969,2]
[402968815,1769019032739,-500.0,0.00011969,2]
[402968816,1769019032749,-500.0,0.00011969,2]
[402968817,1769019032757,-500.0,0.00011969,2]
[402968818,1769019032766,-500.0,0.00011969,2]
[402968819,1769019032775,-251.17729168,0.00013253,2]
[402968820,1769019032785,-259.6530542,0.00013598,2]
[402968821,1769019032795,-202.99428034,0.00013651,2]
[402968822,1769019032803,-14939.80759851,0.00013652,2]
[402968939,1769019038306,-50000.0,0.00011969,2]
[402968940,1769019038317,-500.0,0.00013651,2]
[402968941,1769019038327,-210.59485254,0.00013651,2]
[402968942,1769019038337,-184.27511958,0.00013651,2]
[402968943,1769019038347,-240.35380192,0.00013651,2]
[402968944,1769019038357,-500.0,0.00013651,2]
[402968945,1769019038367,-228.44943322,0.00013651,2]
[402968946,1769019038377,-7689.41037202,0.00013652,2]
[402968947,1769019038388,-646.60691937,0.00013698,2]
[402968948,1769019038398,-1742.09723721,0.00014339,5]
[402968949,1769019038408,-500.0,0.00014356,2]
[402968950,1769019038418,-1205.5380736,0.00014356,2]
[402968951,1769019038429,-259.65305419,0.00014584,2]
[402968953,1769019038439,-1000.0,0.0001463,2]
[402968955,1769019038449,-254.368225,0.00014642,2]
[402968957,1769019038458,-1771.82635813,0.00014899,5]
[402968959,1769019038470,-500.0,0.00014977,2]
[402968961,1769019038480,-150.0,0.00014977,2]
[402968963,1769019038490,-607.3141342,0.00014978,2]
[402968965,1769019038499,-1558.04187385,0.00015028,2]
[402968967,1769019038509,-445.202766,0.00015028,2]
[402968969,1769019038519,-2150.738,0.00015028,2]
[402968971,1769019038528,-1368.0,0.00015046,2]
[402968973,1769019038538,-629.0,0.00015046,2]
[402968975,1769019038548,-2148.0,0.00015046,2]
[402968977,1769019038558,-417.0,0.00015046,2]
[402968979,1769019038568,-417.0,0.00015046,2]
[402968981,1769019038578,-715.0,0.00015046,2]
[402968983,1769019038587,-200.628,0.00015046,2]
[402968985,1769019038597,-500.0,0.00015114,2]
[402968987,1769019038606,-150.0,0.00015114,2]
[402968989,1769019038616,-3217.157359,0.00015135,2]
[402968991,1769019038625,-1072.014827,0.00015135,2]
[402968993,1769019038635,-277.74540953,0.00015251,2]
[402968995,1769019038644,-200.0,0.00015251,2]
[402968997,1769019038654,-284.42134499,0.00015253,2]
[402968999,1769019038664,-393.49,0.000154,2]
[402969001,1769019038673,-169.23143279,0.000154,2]
[402969003,1769019038683,-156.61357181,0.00015409,5]
[402969005,1769019038694,-150.08360901,0.00015409,5]
[402969007,1769019038704,-284.00223039,0.00015409,5]
[402969009,1769019038714,-200.57729106,0.00015409,5]
[402969011,1769019038724,-259.65305419,0.00015571,2]
[402969013,1769019038734,-1383.46336596,0.00015576,2]
[402969015,1769019038744,-500.0,0.00015678,2]
[402969017,1769019038754,-2000.0,0.00015705,2]
[402969019,1769019038765,-2000.0,0.00015705,2]
[402969021,1769019038775,-2000.0,0.00015705,2]
[402969023,1769019038786,-2000.0,0.00015705,2]
[402969025,1769019038796,-2000.0,0.00015705,2]
[402969027,1769019038805,-2000.0,0.00015705,2]
[402969029,1769019038815,-2000.0,0.00015705,2]
[402969031,1769019038825,-2000.0,0.00015705,2]
[402969033,1769019038835,-2000.0,0.00015705,2]
[402969035,1769019038845,-687.729,0.00015705,2]
[402969037,1769019038856,-657.88459701,0.00015813,2]
[402969039,1769019038866,-669.11148511,0.00015813,2]
[402969041,1769019038876,-1184.19227462,0.00015813,2]
[402969043,1769019038886,-1204.4006732,0.00015813,2]
[402969045,1769019038898,-2105.23071044,0.00015813,2]
[402969047,1769019038908,-2141.15675236,0.00015813,2]
[402969049,1769019038920,-165.887156,0.00015813,2]
[402969051,1769019038931,-221.0,0.00015842,2]
[402969053,1769019038941,-1438.85695433,0.000159,2]
[402969055,1769019038952,-221.0,0.00015901,2]
[402969057,1769019038962,-3286.13356208,0.00015902,2]
[402969059,1769019038972,-201.50586993,0.00015999,2]
[402969061,1769019038982,-4158.13364874,0.00015999,2]
[402969063,1769019038992,-186839.10923853,0.00016,2]
[402969065,1769019039002,-231.04219858,0.00016,30]
[402969067,1769019039012,-150.0,0.00016,2]
[402969069,1769019039022,-221.0,0.00016087,2]
[402969071,1769019039033,-221.0,0.00016107,2]
[402969073,1769019039043,-221.0,0.00016122,2]
[402969075,1769019039054,-500.0,0.00016142,2]
[402969077,1769019039064,-500.0,0.00016142,2]
[402969079,1769019039074,-150.0,0.00016173,2]
[402969081,1769019039084,-150.088,0.00016173,2]
[402969083,1769019039095,-150.0,0.00016173,2]
[402969085,1769019039106,-150.071,0.00016173,2]
[402969087,1769019039116,-221.0,0.00016174,2]
[402969089,1769019039127,-378.1755073,0.0001619,2]
[402969091,1769019039136,-2251.45135721,0.00016278,2]
[402969093,1769019039146,-500.0,0.00016438,2]
[402969095,1769019039157,-500.0,0.00016438,2]
[402969097,1769019039168,-500.0,0.00016438,2]
[402969099,1769019039178,-500.0,0.00016438,2]
[402969101,1769019039187,-500.0,0.00016438,2]
[402969103,1769019039199,-500.0,0.00016438,2]
[402969105,1769019039209,-500.0,0.00016438,2]
[402969107,1769019039219,-500.0,0.00016438,2]
[402969109,1769019039230,-504.02452176,0.00016438,2]
[402969111,1769019039239,-223.25808499,0.00016438,2]
[402969113,1769019039250,-500.0,0.00016438,2]
[402969115,1769019039260,-224.22432065,0.00016438,17]
[402969117,1769019039269,-151.0,0.00016438,2]
[402969119,1769019039278,-184.99,0.0001644,2]
[402969120,1769019039288,-184.99,0.0001644,2]
[402969122,1769019039298,-221.0,0.00016511,2]
[402969124,1769019039308,-259.65305419,0.00016557,2]
[402969126,1769019039318,-221.0,0.00016569,2]
[402969128,1769019039327,-160.0,0.00016628,2]
[402969130,1769019039336,-1041.66666667,0.00016628,2]
[402969132,1769019039350,-221.0,0.00016666,2]
[402969134,1769019039360,-3342.21186813,0.00016745,2]
[402969136,1769019039370,-297.60817156,0.00016845,2]
[402969138,1769019039381,-173.09026532,0.00016853,23]
[402969141,1769019039392,-224.22432065,0.00016957,25]
[402969142,1769019039402,-1540.74885193,0.00017,2]
[402969144,1769019039412,-58804.35440562,0.0001701,3]
[402969146,1769019039421,-151.0,0.0001701,2]
[402969148,1769019039431,-378.1755073,0.00017149,2]
[402969150,1769019039442,-378.1755073,0.00017149,2]
[402969151,1769019039451,-378.1755073,0.00017149,2]
[402969152,1769019039461,-378.1755073,0.00017149,2]
[402969153,1769019039470,-378.1755073,0.00017149,2]
[402969155,1769019039479,-756.1999078,0.00017149,2]
[402969157,1769019039489,-378.1755073,0.00017149,2]
[402969158,1769019039499,-378.1755073,0.00017149,2]
[402969160,1769019039508,-378.1755073,0.00017149,2]
[402969162,1769019039518,-405.2504642,0.00017149,2]
[402969163,1769019039527,-317.6653983,0.00017253,2]
[402969164,1769019039536,-224.22432065,0.00017476,32]
[402969165,1769019039545,-259.65305419,0.00017543,2]
[402969167,1769019039555,-2139.30030526,0.000176,2]
[402969169,1769019039564,-3877.0,0.00017643,2]
[402969171,1769019039573,-464.0,0.0001772,2]
[402969173,1769019039582,-2507.62535174,0.000178,3]
[402969175,1769019039592,-459.0,0.00017892,2]
[402969177,1769019039601,-302.0,0.00017892,2]
[402969178,1769019039610,-17680.16394821,0.0001799,2]
[402969179,1769019039619,-221.0,0.00017993,2]
[402969180,1769019039630,-224.22432065,0.00017995,40]
[402969181,1769019039639,-146670.53018173,0.00018,2]
[402969182,1769019039649,-504.62265731,0.00018,2]
[402969183,1769019039659,-1462.56622869,0.00018,2]
[402969184,1769019039668,-725.704861,0.00018,2]
[402969185,1769019039678,-673.95079518,0.00018,2]
[402969186,1769019039687,-514.01732238,0.00018,2]
[402969187,1769019039696,-850.33724514,0.00018,2]
[402969188,1769019039706,-328.78905534,0.00018,2]
[402969189,1769019039716,-674.70834674,0.00018,2]
[402969190,1769019039725,-151.0,0.00018,2]
[402969191,1769019039734,-200.0,0.00018,3]
[402969192,1769019039743,-200.0,0.00018,3]
[402969193,1769019039753,-200.0,0.00018,3]
[402969194,1769019039762,-200.0,0.00018,3]
[402969195,1769019039773,-1368.0,0.00018046,2]
[402969196,1769019039782,-629.0,0.00018046,2]
[402969197,1769019039791,-2148.0,0.00018046,2]
[402969198,1769019039801,-417.0,0.00018046,2]
[402969199,1769019039811,-417.0,0.00018046,2]
[402969200,1769019039821,-715.0,0.00018046,2]
[402969201,1769019039830,-178.0,0.00018046,2]
[402969202,1769019039839,-260.99812808,0.00018151,2]
[402969203,1769019039849,-347.9975041,0.00018151,2]
[402969204,1769019039859,-173.99875205,0.00018151,2]
[402969205,1769019039868,-160.0,0.00018154,2]
[402969206,1769019039877,-725.704861,0.000182,2]
[402969207,1769019039888,-673.95079518,0.000182,2]
[402969208,1769019039897,-514.01732238,0.000182,2]
[402969209,1769019039907,-850.33724514,0.000182,2]
[402969210,1769019039917,-328.78905534,0.000182,2]
[402969211,1769019039927,-674.70834674,0.000182,2]
[402969212,1769019039937,-173.09026532,0.00018307,45]
[402969213,1769019039947,-3877.0,0.0001836,2]
[402969214,1769019039957,-1466.0,0.0001836,2]
[402969215,1769019039966,-725.704861,0.000184,2]
[402969216,1769019039975,-673.95079518,0.000184,2]
[402969217,1769019039985,-514.01732238,0.000184,2]
[402969219,1769019039994,-850.33724514,0.000184,2]
[402969221,1769019040003,-328.78905534,0.000184,2]
[402969223,1769019040013,-674.70834674,0.000184,2]
[402969225,1769019040023,-151.0,0.000184,2]
[402969227,1769019040032,-7007.290173,0.000184,7]
[402969229,1769019040042,-2507.62,0.000184,3]
[402969230,1769019040051,-2251.45135721,0.00018482,2]
[402969232,1769019040060,-2685.33290035,0.000185,2]
[402969234,1769019040069,-725.704861,0.000185,2]
[402969238,1769019040079,-673.95079518,0.000185,2]
[402969240,1769019040088,-514.01732238,0.000185,2]
[402969242,1769019040099,-850.33724514,0.000185,2]
[402969243,1769019040108,-328.78905534,0.000185,2]
[402969245,1769019040117,-674.70834674,0.000185,2]
[402969247,1769019040126,-224.22432065,0.00018514,48]
[402969249,1769019040136,-281.0,0.000186,2]
[402969251,1769019040145,-176267.00752142,0.0001862,2]
[402969253,1769019040158,-320.42045996,0.0001862,2]
[402969285,1769019040466,-421.0,0.00018552,5]
[402969287,1769019040476,-600.5,0.00018552,5]
[402969289,1769019040485,-699.119803,0.0001862,2]
[402969521,1769019046345,-7146.3555459,0.0001862,2]
[402969522,1769019186985,150.0,8.874e-05,2]
[402969523,1769019267142,150.0,8.449e-05,2]
[402969524,1769019267553,150.0,8.851e-05,2]
[402969525,1769019344753,150.0,8.443e-05,2]
[402969526,1769019345717,150.0,8.845e-05,2]
[402969527,1769019419891,150.0,8.442e-05,2]
[402969528,1769019420329,150.0,8.844e-05,2]
[402972720,1769019634461,150.0,8.39e-05,2]
[402972728,1769019634863,150.0,8.789e-05,2]
[402973318,1769019707171,150.0,8.366e-05,2]
[402973319,1769019708051,150.0,8.765e-05,2]
[402973320,1769019840024,2931.76851526,0.000128,60]
[402973321,1769020000130,-517.72364802,9.212e-05,2]
[402973661,1769020232886,-171.36257195,9.376e-05,2]
[402973662,1769020232895,-164.761643,0.00010138,2]
[402973663,1769020232904,-184.54,0.0001028,2]
[402973664,1769020232913,-155.0,0.00010545,2]
[402973665,1769020232922,-230.68,0.00010708,2]
[402973666,1769020232931,-276.81,0.00011136,2]
[402973667,1769020232941,-202.2078349,0.00011376,2]
[402973668,1769020232953,-322.95,0.00011565,2]
[402973669,1769020232965,-369.09,0.00011993,2]
[402973670,1769020232974,-415.22,0.00012421,2]
[402973671,1769020232983,-728.12039936,0.00012421,2]
[402973672,1769020232993,-24953.0775343,0.00012582,2]
[402973673,1769020233002,-461.36,0.0001285,2]
[402973674,1769020233012,-233.05309785,0.00013376,2]
[402973675,1769020233021,-254.3682267,0.00014922,2]
[402973676,1769020233031,-263.89836081,0.00015376,2]
[402973677,1769020233040,-300.0,0.00016011,2]
[402973678,1769020233049,-300.0,0.00016011,2]
[402973679,1769020233059,-151.0,0.00016012,2]
[402973680,1769020233068,-151.0,0.00016012,2]
[402973681,1769020233078,-151.0,0.00016012,2]
[402973682,1769020233087,-151.0,0.00016012,2]
[402973683,1769020233097,-151.0,0.00016012,2]
[402973684,1769020233106,-151.0,0.00016012,2]
[402973685,1769020233115,-151.0,0.00016012,2]
[402973686,1769020233125,-151.0,0.00016012,2]
[402973687,1769020233134,-17300.0,0.00016015,2]
[402973688,1769020233143,-1368.0,0.00016022,2]
[402973689,1769020233153,-2148.0,0.00016022,2]
[402973690,1769020233163,-629.0,0.00016022,2]
[402973691,1769020233173,-417.0,0.00016022,2]
[402973692,1769020233182,-715.0,0.00016022,2]
[402973693,1769020233191,-200.628,0.00016022,2]
[402973694,1769020233201,-500.0,0.00016142,2]
[402973695,1769020233211,-52845.94995616,0.00016326,2]
[402973696,1769020233222,-512.44630202,0.0001638,2]
[402973697,1769020233232,-157.34563666,0.00016485,2]
[402973698,1769020233242,-1041.66666667,0.00016651,2]
[402973699,1769020233251,-2078.1112152,0.00016895,2]
[402973700,1769020233260,-294.74362376,0.00017376,2]
[402973701,1769020233269,-164.39452768,0.00018,2]
[402973702,1769020233279,-168.67708669,0.00018,2]
[402973703,1769020233289,-181.42621525,0.00018,2]
[402973704,1769020233299,-168.48769879,0.00018,2]
[402973705,1769020233308,-170.06744902,0.00018,2]
[402973706,1769020233317,-171.33910747,0.00018,2]
[402973707,1769020233327,-164.39452768,0.000182,2]
[402973708,1769020233336,-168.67708669,0.000182,2]
[402973709,1769020233346,-181.42621525,0.000182,2]
[402973710,1769020233355,-168.48769879,0.000182,2]
[402973711,1769020233364,-170.06744902,0.000182,2]
[402973712,1769020233373,-171.33910747,0.000182,2]
[402973713,1769020233383,-959.23796955,0.00018248,2]
[402973714,1769020233391,-314.792,0.00018256,2]
[402973715,1769020233400,-5373.5,0.00018256,3]
[402973716,1769020233409,-2078.11121518,0.00018381,2]
[402973717,1769020233418,-150.13253503,0.00018382,7]
[402973718,1769020233428,-168.67708669,0.000184,2]
[402973719,1769020233436,-181.42621525,0.000184,2]
[402973720,1769020233446,-168.48769879,0.000184,2]
[402973721,1769020233455,-170.06744902,0.000184,2]
[402973722,1769020233464,-171.33910747,0.000184,2]
[402973723,1769020233473,-168.67708669,0.000185,2]
[402973724,1769020233482,-181.42621525,0.000185,2]
[402973725,1769020233491,-168.48769879,0.000185,2]
[402973726,1769020233500,-170.06744902,0.000185,2]
[402973727,1769020233509,-160.1728334,0.00018548,2]
[402973728,1769020233523,-506.28065949,0.00018555,2]
[402973729,1769020233532,-30636.49082118,0.00018556,2]
[402973730,1769020233570,-9336.43483078,0.00018556,2]
[402973873,1769020240603,-151.0,0.00016012,2]
[402973874,1769020240613,-151.0,0.00016012,2]
[402973875,1769020240623,-151.0,0.00016012,2]
[402973876,1769020240633,-639.4919797,0.00018248,2]
[402973877,1769020240642,-116.4050843,0.00018556,2]
[402973993,1769020270695,230.07,9.826e-05,2]
[402973994,1769020271224,345.11,0.00010273,2]
[402973995,1769020271606,460.15,0.0001072,2]
[402974157,1769020298538,-432.31373852,0.00011166,2]
[402974158,1769020298552,-142.86626148,0.00011166,2]
[402974159,1769020298562,-432.31373852,0.00011613,2]
[402974218,1769020349112,178.07,8.725e-05,2]
[402974219,1769020350013,267.11,9.122e-05,2]
[402974220,1769020350066,356.15,9.519e-05,2]
[402974221,1769020350404,206.16373852,9.915e-05,2]
[402974322,1769020439203,-800.0,0.00015749,30]
[402974323,1769020439270,-800.0,0.00015749,30]
[402974324,1769020439333,-800.0,0.00015749,30]
[402974325,1769020439397,-800.0,0.00015749,30]
[402974326,1769020439456,-800.0,0.00015749,30]
[402974327,1769020439517,-800.0,0.00015749,30]
[402974328,1769020439578,-800.0,0.00015749,30]
[402974329,1769020439633,-800.0,0.00015749,30]
[402974330,1769020439690,-800.0,0.00015749,30]
[402974331,1769020439743,-800.0,0.00015749,30]
[402974332,1769020439796,-800.0,0.00015749,30]
[402974333,1769020439847,-800.0,0.00015749,30]
[402974334,1769020439901,-800.0,0.00015749,30]
[402974335,1769020439965,-800.0,0.000188,30]
[402974336,1769020440030,-800.0,0.000188,30]
[402974337,1769020440097,-800.0,0.000188,30]
[402974338,1769020440166,-800.0,0.000188,30]
[402974339,1769020440235,-800.0,0.000188,30]
[402974340,1769020440303,-800.0,0.000188,30]
[402974341,1769020440364,-800.0,0.000188,30]
[402974342,1769020440424,-800.0,0.000188,30]
[402974343,1769020440480,-800.0,0.000188,30]
[402974344,1769020440535,-800.0,0.000188,30]
[402974345,1769020440588,-800.0,0.000188,30]
[402974346,1769020440639,-800.0,0.000188,30]
[402974347,1769020440693,-800.0,0.000188,30]
[402974348,1769020440745,-155.77226533,0.000188,30]
[402974349,1769020440796,-500.0,0.000188,30]
[402974350,1769020440846,-500.0,0.000188,30]
[402974351,1769020441093,-500.0,0.000188,30]
[402974352,1769020441159,-502.17429512,0.000188,30]
[402974353,1769020441225,-500.0,0.000188,30]
[402974354,1769020441288,-500.0,0.000188,30]
[402974355,1769020441346,-715.20371409,0.000188,30]
[402974356,1769020441406,-224.22432065,0.00019033,56]
[402974357,1769020441464,-154.34293892,0.00019096,30]
[402974358,1769020441583,-224.22432065,0.00019552,63]
[402974359,1769020441640,-173.09026532,0.0001976,66]
[402974360,1769020441697,-1007.7577505,0.0002,120]
[402974361,1769020441749,-2541.55411398,0.0002,30]
[402974362,1769020441800,-813.26141,0.0002,120]
[402974363,1769020441851,-5000.0,0.0002,30]
[402974364,1769020441906,-238.64320158,0.00020019,30]
[402974365,1769020441966,-238.64320158,0.00020039,30]
[402974366,1769020442029,-238.64320158,0.00020058,30]
[402974367,1769020442094,-224.22432065,0.00020071,71]
[402974368,1769020442160,-238.64320158,0.00020077,30]
[402974369,1769020442226,-238.64320158,0.00020097,30]
[402974370,1769020442290,-238.64320158,0.00020116,30]
[402974371,1769020442347,-238.64320158,0.00020135,30]
[402974372,1769020442405,-621.0,0.00020141,120]
[402974373,1769020442459,-238.64320158,0.00020155,30]
[402974374,1769020442515,-238.64320158,0.00020174,30]
[402974375,1769020442574,-238.64320158,0.00020193,30]
[402974376,1769020442636,-238.64320158,0.00020213,30]
[402974377,1769020442705,-238.64320158,0.00020232,30]
[402974378,1769020442769,-477.18640316,0.00020251,30]
[402974379,1769020442848,-180.0,0.0002041,120]
[402974380,1769020442950,-164.0,0.0002041,120]
[402974381,1769020443054,-224.22432065,0.0002059,79]
[402974382,1769020443161,-520.12911325,0.00020681,30]
[402974383,1769020443260,-449.0,0.00021037,120]
[402974384,1769020443352,-224.22432065,0.0002111,86]
[402974385,1769020443461,-621.0,0.00021148,120]
[402974386,1769020443553,-161.0,0.0002117,120]
[402974387,1769020443642,-160.0,0.00021198,120]
[402974388,1769020443727,-182.0,0.00021198,120]
[402974389,1769020443820,-15465.65804276,0.000212,30]
[402974390,1769020443924,-310.0,0.000212,120]
[402974391,1769020444023,-180.0,0.000212,120]
[402974392,1769020444117,-186.0,0.000212,120]
[402974393,1769020444209,-180.0,0.000212,120]
[402974394,1769020444299,-173.09026532,0.00021213,88]
[402974395,1769020444392,-200.0,0.00021365,120]
[402974396,1769020444484,-180.0,0.00021431,120]
[402974397,1769020444574,-164.0,0.00021431,120]
[402974398,1769020444661,-224.22432065,0.00021629,94]
[402974399,1769020444747,-192.92507259,0.00021752,110]
[402974400,1769020444829,-247.88101011,0.00021752,120]
[402974401,1769020444915,-198.24289679,0.00021772,110]
[402974402,1769020445001,-169.23143278,0.00021772,120]
[402974403,1769020445087,-247.88101011,0.00021843,120]
[402974404,1769020445172,-1001.76,0.00021897,60]
[402974405,1769020445259,-23519.10215,0.00022,120]
[402974406,1769020445338,-265.0,0.00022,30]
[402974407,1769020445418,-245.47162373,0.00022007,120]
[402974408,1769020445493,-220.99937802,0.00022007,120]
[402974409,1769020445570,-155.42067258,0.00022007,120]
[402974410,1769020445648,-150.13194405,0.00022007,120]
[402974411,1769020445717,-170.19509067,0.00022007,110]
[402974412,1769020445786,-224.22432062,0.00022007,120]
[402974413,1769020446191,-449.0,0.00022089,120]
[402974414,1769020446263,-224.22432065,0.00022148,102]
[402974415,1769020446329,-200.0,0.00022148,120]
[402974416,1769020446391,-621.0,0.00022206,120]
[402974417,1769020446461,-161.0,0.00022228,120]
[402974418,1769020446529,-160.0,0.00022258,120]
[402974419,1769020446589,-182.0,0.00022258,120]
[402974420,1769020446650,-310.0,0.0002226,120]
[402974421,1769020446706,-180.0,0.0002226,120]
[402974422,1769020446764,-186.0,0.0002226,120]
[402974423,1769020446823,-180.0,0.0002226,120]
[402974424,1769020446881,-200.0,0.00022281,120]
[402974425,1769020446938,-164.0,0.00022502,120]
[402974426,1769020447002,-200.0,0.00022618,120]
[402974427,1769020447068,-173.09026532,0.00022667,110]
[402974428,1769020447131,-2337.04936,0.00022977,30]
[402974429,1769020447197,-2800.003921,0.00022977,30]
[402974430,1769020447264,-4572.57776,0.00022977,30]
[402974431,1769020447330,-1080.483464,0.00022977,30]
[402974432,1769020447393,-2771.935779,0.00022986,30]
[402974433,1769020447453,-3537.331711,0.00022986,30]
[402974434,1769020447515,-2458.264292,0.00023,30]
[402974435,1769020447571,-2939.098961,0.00023,30]
[402974436,1769020447631,-2036.982754,0.00023,30]
[402974437,1769020447684,-1878.680638,0.00023,30]
[402974438,1769020447737,-2069.675519,0.00023,30]
[402974439,1769020447791,-1804.578623,0.00023,30]
[402974440,1769020447843,-3276.065653,0.00023,30]
[402974441,1769020447902,-2365.352498,0.00023,30]
[402974442,1769020447969,-1180.328218,0.00023115,30]
[402974443,1769020448036,-1523.686942,0.00023147,30]
[402974444,1769020448103,-449.0,0.00023193,120]
[402974445,1769020448173,-621.0,0.00023316,120]
[402974446,1769020448242,-161.0,0.0002334,120]
[402974447,1769020448309,-160.0,0.00023371,120]
[402974448,1769020448372,-310.0,0.00023374,120]
[402974449,1769020448437,-180.0,0.00023374,120]
[402974450,1769020448502,-186.0,0.00023374,120]
[402974451,1769020448564,-180.0,0.00023374,120]
[402974452,1769020448632,-1832.31286,0.0002346,30]
[402974453,1769020448701,-164.0,0.00023627,120]
[402974454,1769020448768,-6880.5344056,0.000237,30]
[402974455,1769020448829,-20000.0,0.000238,60]
[402974456,1769020448889,-7506.29296432,0.00024,60]
[402974457,1769020448958,-871.88,0.00024,120]
[402974458,1769020449028,-200.0,0.0002404,120]
[402974459,1769020449097,-865.97430859,0.00024108,120]
[402974460,1769020449164,-449.0,0.00024353,120]
[402974461,1769020449231,-621.0,0.00024482,120]
[402974462,1769020449297,-200.0,0.000245,120]
[402974463,1769020449364,-309.1673,0.00024648,30]
[402974464,1769020449426,-309.1673,0.00024648,30]
[402974465,1769020449489,-200.0,0.0002484,120]
[402974466,1769020449552,-3978.61833062,0.000249,30]
[402974467,1769020449614,-185.88589589,0.00024938,120]
[402974468,1769020449675,-1041.66666667,0.00025,30]
[402974469,1769020449733,-47000.0,0.00025,30]
[402974470,1769020449791,-159.0,0.00025,30]
[402974471,1769020449848,-1900.0,0.00025,30]
[402974472,1769020449907,-598.53853281,0.00025,30]
[402974473,1769020450134,-1041.66666667,0.00025,30]
[402974474,1769020450200,-726.26513094,0.00025,120]
[402974475,1769020450268,-1041.66666667,0.00025,30]
[402974476,1769020450329,-1041.66666667,0.00025,30]
[402974477,1769020450388,-1041.66666667,0.00025,30]
[402974478,1769020450444,-20000.0,0.00025,30]
[402974479,1769020450501,-1041.66666667,0.00025,30]
[402974480,1769020450555,-293.4199336,0.00025,30]
[402974481,1769020450612,-1379.88,0.000255,120]
[402974482,1769020450672,-200.0,0.00025675,120]
[402974483,1769020450738,-200.0,0.00025785,120]
[402974484,1769020450812,-9930.5989424,0.00026,120]
[402974485,1769020450880,-116044.5988,0.00026,30]
[402974486,1769020450942,-1629.00608191,0.00026,30]
[402974487,1769020451014,-200.0,0.00026203,120]
[402974488,1769020451090,-200.0,0.00026287,120]
[402974489,1769020451157,-200.0,0.00026628,120]
[402974490,1769020451221,-200.0,0.00026644,120]
[402974491,1769020451284,-200.0,0.0002668,120]
[402974492,1769020451349,-1007.91,0.000267,120]
[402974493,1769020451415,-46827.4008595,0.000268,30]
[402974494,1769020451483,-231.26438,0.00027,120]
[402974495,1769020451546,-200.0,0.00027,120]
[402974496,1769020451605,-202.3657,0.00027,120]
[402974497,1769020451662,-151.44911015,0.00027,120]